[Event "*** Titled Tuesday Blitz"]
[Site "Chess.com"]
[Date "2020.12.01"]
[Round "10"]
[White "Micki-taryan"]
[Black "GukeshDommaraju"]
[Result "0-1"]
[WhiteElo "3005"]
[BlackElo "2909"]
[TimeControl "180+1"]
[EndTime "11:55:56 PST"]
[Termination "GukeshDommaraju won by resignation"]

1. Nf3 {[%clk 0:03:00.9]} 1... d5 {[%clk 0:02:58.9]} 2. d4 {[%clk 0:02:59.8]}
2... Nf6 {[%clk 0:02:58.9]} 3. c4 {[%clk 0:02:59.9]} 3... e6 {[%clk 0:02:59.1]}
4. Nc3 {[%clk 0:03:00.3]} 4... Be7 {[%clk 0:02:59.2]} 5. Bg5 {[%clk 0:02:59.9]}
5... O-O {[%clk 0:02:59.2]} 6. Qc2 {[%clk 0:02:59.4]} 6... Nbd7 {[%clk
0:02:58.1]} 7. cxd5 {[%clk 0:02:59.1]} 7... exd5 {[%clk 0:02:53.9]} 8. e3 {[%clk
0:02:59]} 8... c6 {[%clk 0:02:52]} 9. Bd3 {[%clk 0:02:59.5]} 9... Re8 {[%clk
0:02:51]} 10. O-O {[%clk 0:02:59.1]} 10... Ne4 {[%clk 0:02:50.4]} 11. Bxe4
{[%clk 0:02:41.7]} 11... dxe4 {[%clk 0:02:48.3]} 12. Nxe4 {[%clk 0:02:41.2]}
12... Bxg5 {[%clk 0:02:48.5]} 13. Nexg5 {[%clk 0:02:34.2]} 13... Nf8 {[%clk
0:02:39.4]} 14. Qb3 {[%clk 0:01:49.7]} 14... Qf6 {[%clk 0:02:24.2]} 15. Qd3
{[%clk 0:01:10.2]} 15... Bf5 {[%clk 0:02:05.9]} 16. e4 {[%clk 0:01:10]} 16...
Bg6 {[%clk 0:02:04.8]} 17. Qe3 {[%clk 0:01:09.7]} 17... h6 {[%clk 0:01:40.8]}
18. e5 {[%clk 0:01:09.5]} 18... Qf5 {[%clk 0:01:37.6]} 19. Nh3 {[%clk 0:01:08]}
19... Ne6 {[%clk 0:01:30.2]} 20. Nh4 {[%clk 0:00:59.9]} 20... Qg4 {[%clk
0:01:23.6]} 21. Nxg6 {[%clk 0:00:57.9]} 21... fxg6 {[%clk 0:01:22.2]} 22. f4
{[%clk 0:00:51.5]} 22... Rad8 {[%clk 0:01:19.7]} 23. Rad1 {[%clk 0:00:51]} 23...
Kh7 {[%clk 0:01:19]} 24. Rd3 {[%clk 0:00:47.7]} 24... Rf8 {[%clk 0:01:15.4]} 25.
Rf3 {[%clk 0:00:33.6]} 25... g5 {[%clk 0:00:55.1]} 26. Nf2 {[%clk 0:00:30.6]}
26... gxf4 {[%clk 0:00:49.4]} 27. Qd2 {[%clk 0:00:23.6]} 27... Qf5 {[%clk
0:00:47.3]} 28. g4 {[%clk 0:00:20.2]} 28... Qg6 {[%clk 0:00:45.3]} 29. h4 {[%clk
0:00:15.1]} 29... Rd5 {[%clk 0:00:41.9]} 30. a3 {[%clk 0:00:12]} 30... Rfd8
{[%clk 0:00:41.4]} 31. Rxf4 {[%clk 0:00:08.6]} 31... Nxf4 {[%clk 0:00:40.5]} 32.
Qxf4 {[%clk 0:00:09.5]} 32... c5 {[%clk 0:00:39.1]} 33. b4 {[%clk 0:00:08.7]}
33... Rxd4 {[%clk 0:00:37.1]} 34. Rxd4 {[%clk 0:00:08.4]} 34... Rxd4 {[%clk
0:00:37.2]} 35. Qe3 {[%clk 0:00:07.5]} 35... b6 {[%clk 0:00:20.2]} 36. Qc3
{[%clk 0:00:03.3]} 36... Qe6 {[%clk 0:00:15.6]} 37. bxc5 {[%clk 0:00:01.5]}
37... bxc5 {[%clk 0:00:12.2]} 38. Qxc5 {[%clk 0:00:02.4]} 38... Rd5 {[%clk
0:00:12.6]} 39. Qc2+ {[%clk 0:00:02.2]} 39... Kg8 {[%clk 0:00:13]} 40. Qe4
{[%clk 0:00:02]} 40... Rxe5 {[%clk 0:00:12.9]} 41. Qa8+ {[%clk 0:00:02.9]} 41...
Kh7 {[%clk 0:00:13.2]} 42. Qxa7 {[%clk 0:00:03.7]} 42... Re1+ {[%clk 0:00:13.3]}
43. Kg2 {[%clk 0:00:04.3]} 43... Qd5+ {[%clk 0:00:13.8]} 44. Kh2 {[%clk
0:00:04.2]} 44... Qe5+ {[%clk 0:00:13.8]} 45. Kg2 {[%clk 0:00:04.1]} 45... Qd5+
{[%clk 0:00:13.8]} 46. Kh2 {[%clk 0:00:04.2]} 46... Qf3 {[%clk 0:00:14]} 47. Qd4
{[%clk 0:00:03.5]} 47... Re2 {[%clk 0:00:13.5]} 48. Kg1 {[%clk 0:00:03.9]} 48...
Re1+ {[%clk 0:00:12]} 49. Kh2 {[%clk 0:00:04.1]} 49... Rf1 {[%clk 0:00:05.6]}
50. Qe4+ {[%clk 0:00:03.1]} 50... Qxe4 {[%clk 0:00:05.5]} 51. Nxe4 {[%clk
0:00:04]} 51... Rf4 {[%clk 0:00:05.7]} 52. Nc5 {[%clk 0:00:03.4]} 52... Rxg4
{[%clk 0:00:05.9]} 53. Kh3 {[%clk 0:00:03.8]} 53... Rc4 {[%clk 0:00:06]} 54. Ne4
{[%clk 0:00:03.9]} 54... Rxe4 {[%clk 0:00:06]} 0-1

[Event "*** Titled Tuesday Blitz"]
[Site "Chess.com"]
[Date "2020.12.01"]
[Round "10"]
[White "Tssunami"]
[Black "LuckSlayeer"]
[Result "1-0"]
[WhiteElo "2449"]
[BlackElo "2570"]
[TimeControl "180+1"]
[EndTime "11:55:59 PST"]
[Termination "Tssunami won by checkmate"]

1. Nf3 {[%clk 0:02:55.8]} 1... Nf6 {[%clk 0:02:59.3]} 2. d4 {[%clk 0:02:47.5]}
2... e6 {[%clk 0:02:58.2]} 3. Bg5 {[%clk 0:02:43.3]} 3... Be7 {[%clk 0:02:56.1]}
4. e3 {[%clk 0:02:42.4]} 4... h6 {[%clk 0:02:53.8]} 5. Bh4 {[%clk 0:02:42]} 5...
d5 {[%clk 0:02:50.7]} 6. Bd3 {[%clk 0:02:41.4]} 6... b6 {[%clk 0:02:49.8]} 7.
Nbd2 {[%clk 0:02:36.4]} 7... Bb7 {[%clk 0:02:49.9]} 8. O-O {[%clk 0:02:36.1]}
8... O-O {[%clk 0:02:41.6]} 9. c4 {[%clk 0:02:35.4]} 9... c5 {[%clk 0:02:39.4]}
10. Rc1 {[%clk 0:02:14.2]} 10... cxd4 {[%clk 0:02:37.4]} 11. exd4 {[%clk
0:02:01.2]} 11... dxc4 {[%clk 0:02:36.6]} 12. Nxc4 {[%clk 0:01:59.9]} 12... Nc6
{[%clk 0:02:33]} 13. Nce5 {[%clk 0:01:56.4]} 13... Rc8 {[%clk 0:02:15.2]} 14.
Nxc6 {[%clk 0:01:45]} 14... Rxc6 {[%clk 0:02:06.8]} 15. Rxc6 {[%clk 0:01:27.4]}
15... Bxc6 {[%clk 0:02:07.7]} 16. Ne5 {[%clk 0:01:27.1]} 16... Bb7 {[%clk
0:01:59.5]} 17. Bc4 {[%clk 0:01:25.9]} 17... Nd7 {[%clk 0:01:38.6]} 18. Bxe7
{[%clk 0:01:15.2]} 18... Qxe7 {[%clk 0:01:39.5]} 19. Qg4 {[%clk 0:01:13.4]}
19... Nf6 {[%clk 0:01:06]} 20. Qh4 {[%clk 0:01:07.9]} 20... Qb4 {[%clk 0:00:52]}
21. b3 {[%clk 0:00:55.4]} 21... b5 {[%clk 0:00:32.8]} 22. Bd3 {[%clk 0:00:52.4]}
22... Rd8 {[%clk 0:00:28.2]} 23. Ng4 {[%clk 0:00:44.2]} 23... Qxd4 {[%clk
0:00:15.9]} 24. Nxf6+ {[%clk 0:00:43.6]} 24... gxf6 {[%clk 0:00:12.4]} 25. Qg3+
{[%clk 0:00:43.4]} 25... Kf8 {[%clk 0:00:08.8]} 26. Bxb5 {[%clk 0:00:41.9]}
26... Qd5 {[%clk 0:00:09.1]} 27. Bc4 {[%clk 0:00:40.7]} 27... Qc6 {[%clk
0:00:08.4]} 28. h3 {[%clk 0:00:35.7]} 28... Ke7 {[%clk 0:00:08]} 29. a4 {[%clk
0:00:31.1]} 29... h5 {[%clk 0:00:07.4]} 30. h4 {[%clk 0:00:29.7]} 30... a6
{[%clk 0:00:06.3]} 31. Re1 {[%clk 0:00:27]} 31... Rd4 {[%clk 0:00:06]} 32. f3
{[%clk 0:00:25.4]} 32... Qc5 {[%clk 0:00:05.8]} 33. Kh2 {[%clk 0:00:22.9]} 33...
Bd5 {[%clk 0:00:02.9]} 34. Bxd5 {[%clk 0:00:21.3]} 34... Rxd5 {[%clk 0:00:03.8]}
35. Re4 {[%clk 0:00:20.9]} 35... Rd7 {[%clk 0:00:03.6]} 36. Qb8 {[%clk
0:00:20.3]} 36... Qf5 {[%clk 0:00:03.1]} 37. Qb4+ {[%clk 0:00:19.9]} 37... Ke8
{[%clk 0:00:03.5]} 38. Qc4 {[%clk 0:00:16.8]} 38... Kf8 {[%clk 0:00:01.7]} 39.
Qxa6 {[%clk 0:00:16.1]} 39... Rd1 {[%clk 0:00:01.8]} 40. Qe2 {[%clk 0:00:15.3]}
40... Ra1 {[%clk 0:00:01.2]} 41. Qf2 {[%clk 0:00:15.4]} 41... Kg7 {[%clk
0:00:01.2]} 42. Qg3+ {[%clk 0:00:15.7]} 42... Kh7 {[%clk 0:00:01.9]} 43. Rf4
{[%clk 0:00:16.1]} 43... Qe5 {[%clk 0:00:02]} 44. Re4 {[%clk 0:00:16.5]} 44...
Qxg3+ {[%clk 0:00:01.7]} 45. Kxg3 {[%clk 0:00:16.5]} 45... Rb1 {[%clk
0:00:02.6]} 46. a5 {[%clk 0:00:16.4]} 46... Rxb3 {[%clk 0:00:02.8]} 47. Ra4
{[%clk 0:00:16.4]} 47... Rb7 {[%clk 0:00:03.5]} 48. a6 {[%clk 0:00:16.4]} 48...
Ra7 {[%clk 0:00:04.2]} 49. Kf4 {[%clk 0:00:16.9]} 49... Kg7 {[%clk 0:00:04.2]}
50. Ke4 {[%clk 0:00:17.4]} 50... f5+ {[%clk 0:00:03.7]} 51. Kd4 {[%clk
0:00:16.5]} 51... Kf6 {[%clk 0:00:04]} 52. Kc5 {[%clk 0:00:17.2]} 52... Ke5
{[%clk 0:00:03.7]} 53. Kb6 {[%clk 0:00:17.6]} 53... Ra8 {[%clk 0:00:04]} 54. Kb7
{[%clk 0:00:18.1]} 54... Rg8 {[%clk 0:00:03.3]} 55. a7 {[%clk 0:00:18.3]} 55...
f4 {[%clk 0:00:03.2]} 56. Rc4 {[%clk 0:00:15.5]} 56... Kf5 {[%clk 0:00:01.6]}
57. Rc8 {[%clk 0:00:15.4]} 57... Rxg2 {[%clk 0:00:02.5]} 58. a8=Q {[%clk
0:00:15.2]} 58... Rb2+ {[%clk 0:00:03.1]} 59. Kc6 {[%clk 0:00:15.8]} 59... Rc2+
{[%clk 0:00:03.4]} 60. Kd7 {[%clk 0:00:16.5]} 60... Rd2+ {[%clk 0:00:03.9]} 61.
Ke7 {[%clk 0:00:17]} 61... e5 {[%clk 0:00:04.1]} 62. Qe4# {[%clk 0:00:16.8]} 1-0

[Event "*** Titled Tuesday Blitz"]
[Site "Chess.com"]
[Date "2020.12.01"]
[Round "10"]
[White "champ2005"]
[Black "FrostNova"]
[Result "1-0"]
[WhiteElo "3042"]
[BlackElo "3020"]
[TimeControl "180+1"]
[EndTime "11:56:07 PST"]
[Termination "champ2005 won by resignation"]

1. c4 {[%clk 0:03:00.9]} 1... e5 {[%clk 0:02:59.4]} 2. Nc3 {[%clk 0:03:00.9]}
2... Nf6 {[%clk 0:02:59.7]} 3. g3 {[%clk 0:03:00.2]} 3... d5 {[%clk 0:02:59.7]}
4. cxd5 {[%clk 0:02:57.9]} 4... Nxd5 {[%clk 0:03:00.6]} 5. Bg2 {[%clk
0:02:58.7]} 5... Nb6 {[%clk 0:03:00.9]} 6. Nf3 {[%clk 0:02:54.7]} 6... Nc6
{[%clk 0:03:00.4]} 7. O-O {[%clk 0:02:54]} 7... Be7 {[%clk 0:03:00.9]} 8. Rb1
{[%clk 0:02:51.3]} 8... a5 {[%clk 0:02:59.7]} 9. d3 {[%clk 0:02:46.4]} 9... O-O
{[%clk 0:02:59.4]} 10. Be3 {[%clk 0:02:41.6]} 10... Be6 {[%clk 0:02:59.6]} 11.
Nd2 {[%clk 0:02:37.5]} 11... Nd5 {[%clk 0:02:58]} 12. Nxd5 {[%clk 0:02:33.1]}
12... Bxd5 {[%clk 0:02:57.6]} 13. Bxd5 {[%clk 0:02:34]} 13... Qxd5 {[%clk
0:02:58.1]} 14. Qb3 {[%clk 0:02:34.9]} 14... Qxb3 {[%clk 0:02:54.1]} 15. Nxb3
{[%clk 0:02:34.1]} 15... Rfd8 {[%clk 0:02:52.9]} 16. Rfc1 {[%clk 0:02:32.9]}
16... f6 {[%clk 0:02:52.1]} 17. Nc5 {[%clk 0:02:25.6]} 17... Bxc5 {[%clk
0:02:51]} 18. Rxc5 {[%clk 0:02:26.5]} 18... Kf7 {[%clk 0:02:51.1]} 19. a3 {[%clk
0:02:20.5]} 19... Rd7 {[%clk 0:02:46.2]} 20. b4 {[%clk 0:02:11.8]} 20... axb4
{[%clk 0:02:46.8]} 21. axb4 {[%clk 0:02:12.7]} 21... Nd8 {[%clk 0:02:47]} 22. b5
{[%clk 0:02:12.9]} 22... Ne6 {[%clk 0:02:46.6]} 23. Rc2 {[%clk 0:02:07.8]} 23...
Rd5 {[%clk 0:02:42.5]} 24. f4 {[%clk 0:02:03.9]} 24... exf4 {[%clk 0:02:10]} 25.
Bxf4 {[%clk 0:02:04.8]} 25... Ra5 {[%clk 0:02:07.3]} 26. Bxc7 {[%clk 0:01:58.9]}
26... Raxb5 {[%clk 0:02:06.6]} 27. Rbc1 {[%clk 0:01:52.6]} 27... Nd4 {[%clk
0:02:02.4]} 28. Ra2 {[%clk 0:01:48.6]} 28... Rd7 {[%clk 0:01:48.6]} 29. Kf2
{[%clk 0:01:47.1]} 29... Rf5+ {[%clk 0:01:45.1]} 30. Kg2 {[%clk 0:01:40.8]}
30... Re7 {[%clk 0:01:43.7]} 31. Bb6 {[%clk 0:01:30.2]} 31... Nxe2 {[%clk
0:01:38]} 32. Rcc2 {[%clk 0:01:26.5]} 32... Rfe5 {[%clk 0:01:24.5]} 33. Kf3
{[%clk 0:01:13.2]} 33... Rf5+ {[%clk 0:01:23.8]} 34. Kg2 {[%clk 0:01:12.4]}
34... Rfe5 {[%clk 0:01:18.2]} 35. Rab2 {[%clk 0:01:08.3]} 35... g5 {[%clk
0:01:00.7]} 36. Kf1 {[%clk 0:00:59]} 36... Rf5+ {[%clk 0:00:59.5]} 37. Kg2
{[%clk 0:00:59.2]} 37... Rfe5 {[%clk 0:00:59.6]} 38. Bf2 {[%clk 0:00:57.2]}
38... Kg6 {[%clk 0:00:32.9]} 39. Kf1 {[%clk 0:00:57.4]} 39... Nxg3+ {[%clk
0:00:33.3]} 40. hxg3 {[%clk 0:00:56.6]} 40... Rd5 {[%clk 0:00:33.5]} 41. d4
{[%clk 0:00:52.9]} 41... h5 {[%clk 0:00:34.1]} 42. Rb6 {[%clk 0:00:51.9]} 42...
Kf5 {[%clk 0:00:33.1]} 43. Rcb2 {[%clk 0:00:49.1]} 43... Red7 {[%clk 0:00:27]}
44. Rxb7 {[%clk 0:00:48.5]} 44... Kg4 {[%clk 0:00:27.6]} 45. Rxd7 {[%clk
0:00:44.9]} 45... Rxd7 {[%clk 0:00:28.5]} 46. Kg2 {[%clk 0:00:41]} 46... f5
{[%clk 0:00:28.9]} 47. Rb3 {[%clk 0:00:38.1]} 47... Rd5 {[%clk 0:00:27.1]} 48.
Rd3 {[%clk 0:00:35.9]} 48... f4 {[%clk 0:00:26.8]} 49. gxf4 {[%clk 0:00:32.5]}
49... Kxf4 {[%clk 0:00:27.7]} 50. Rf3+ {[%clk 0:00:30.1]} 50... Kg4 {[%clk
0:00:26.4]} 51. Rf8 {[%clk 0:00:29.3]} 51... h4 {[%clk 0:00:24.2]} 52. Re8
{[%clk 0:00:25.3]} 52... Kf5 {[%clk 0:00:19.8]} 53. Kh3 {[%clk 0:00:23.2]} 53...
Ra5 {[%clk 0:00:18]} 54. Be3 {[%clk 0:00:23.3]} 54... Ra3 {[%clk 0:00:16.5]} 55.
Re5+ {[%clk 0:00:22.5]} 55... Kf6 {[%clk 0:00:16.7]} 56. Kg4 {[%clk 0:00:20.3]}
56... h3 {[%clk 0:00:16.9]} 57. Bxg5+ {[%clk 0:00:18.1]} 57... Kg6 {[%clk
0:00:15.8]} 58. Bf4 {[%clk 0:00:17.2]} 58... Rd3 {[%clk 0:00:15.3]} 59. d5
{[%clk 0:00:17.2]} 59... Kf6 {[%clk 0:00:15.4]} 60. Rh5 {[%clk 0:00:17]} 60...
Kg6 {[%clk 0:00:14.5]} 61. Rg5+ {[%clk 0:00:16.4]} 61... Kf6 {[%clk 0:00:14.7]}
62. Rh5 {[%clk 0:00:16.7]} 62... Kg6 {[%clk 0:00:15.2]} 63. Rh6+ {[%clk
0:00:16.3]} 63... Kg7 {[%clk 0:00:15.4]} 64. d6 {[%clk 0:00:15.7]} 64... Rd4
{[%clk 0:00:13.9]} 65. Rxh3 {[%clk 0:00:15.1]} 65... Kf6 {[%clk 0:00:13.8]} 66.
Rh6+ {[%clk 0:00:15.3]} 66... Kf7 {[%clk 0:00:13.9]} 67. Kf5 {[%clk 0:00:15.4]}
1-0

[Event "*** Titled Tuesday Blitz"]
[Site "Chess.com"]
[Date "2020.12.01"]
[Round "10"]
[White "CM_rui"]
[Black "Taktikmonster"]
[Result "1/2-1/2"]
[WhiteElo "2362"]
[BlackElo "2225"]
[TimeControl "180+1"]
[EndTime "11:56:07 PST"]
[Termination "Game drawn - insufficient material"]

1. e4 {[%clk 0:03:00.9]} 1... c5 {[%clk 0:03:00.1]} 2. Nf3 {[%clk 0:03:01]} 2...
d6 {[%clk 0:03:00.4]} 3. c4 {[%clk 0:03:01.3]} 3... g6 {[%clk 0:02:59.4]} 4. d4
{[%clk 0:03:01.1]} 4... Bg7 {[%clk 0:02:58.7]} 5. Nc3 {[%clk 0:02:56.5]} 5...
Bg4 {[%clk 0:02:58.6]} 6. dxc5 {[%clk 0:02:48.1]} 6... Bxc3+ {[%clk 0:02:53.5]}
7. bxc3 {[%clk 0:02:49]} 7... dxc5 {[%clk 0:02:54.1]} 8. Qxd8+ {[%clk
0:02:47.4]} 8... Kxd8 {[%clk 0:02:55]} 9. Ne5 {[%clk 0:02:45.4]} 9... Be6 {[%clk
0:02:51.4]} 10. Be3 {[%clk 0:02:43.2]} 10... f6 {[%clk 0:02:38.9]} 11. O-O-O+
{[%clk 0:02:41.6]} 11... Ke8 {[%clk 0:02:28.3]} 12. Nf3 {[%clk 0:02:35.8]} 12...
b6 {[%clk 0:02:26.3]} 13. e5 {[%clk 0:02:35.5]} 13... Nc6 {[%clk 0:02:22.9]} 14.
exf6 {[%clk 0:02:34.9]} 14... Nxf6 {[%clk 0:02:20.9]} 15. Ng5 {[%clk 0:02:30.3]}
15... Bg8 {[%clk 0:02:13.6]} 16. g3 {[%clk 0:02:26.9]} 16... Ne5 {[%clk
0:02:04.8]} 17. Bg2 {[%clk 0:02:23.9]} 17... Rc8 {[%clk 0:02:04.7]} 18. Bd5
{[%clk 0:02:17.5]} 18... Nxc4 {[%clk 0:01:57.3]} 19. Bxg8 {[%clk 0:02:13.4]}
19... Rxg8 {[%clk 0:01:54.5]} 20. Bf4 {[%clk 0:02:06.7]} 20... h6 {[%clk
0:01:49.8]} 21. Ne6 {[%clk 0:01:58.9]} 21... Kf7 {[%clk 0:01:44.6]} 22. Rhe1
{[%clk 0:01:57.1]} 22... g5 {[%clk 0:01:41.4]} 23. Bc7 {[%clk 0:01:56.3]} 23...
Ng4 {[%clk 0:00:47.3]} 24. Rd3 {[%clk 0:01:47.5]} 24... Rg6 {[%clk 0:00:39.1]}
25. Nd8+ {[%clk 0:01:34]} 25... Ke8 {[%clk 0:00:33.9]} 26. Ne6 {[%clk
0:01:23.4]} 26... Rxe6 {[%clk 0:00:19.4]} 27. Rxe6 {[%clk 0:01:24.3]} 27... Rxc7
{[%clk 0:00:19.9]} 28. f3 {[%clk 0:01:17.6]} 28... Nge5 {[%clk 0:00:18.4]} 29.
Rd5 {[%clk 0:01:14.8]} 29... Nxf3 {[%clk 0:00:17.5]} 30. Rxh6 {[%clk 0:01:13.8]}
30... Nfe5 {[%clk 0:00:09.1]} 31. Rh5 {[%clk 0:01:00]} 31... g4 {[%clk
0:00:08.5]} 32. Rhxe5 {[%clk 0:00:58.3]} 32... Nxe5 {[%clk 0:00:09.4]} 33. Rxe5
{[%clk 0:00:59.1]} 33... Rd7 {[%clk 0:00:09.9]} 34. Re4 {[%clk 0:00:55.5]} 34...
Rd3 {[%clk 0:00:10]} 35. Kc2 {[%clk 0:00:55.9]} 35... Rf3 {[%clk 0:00:10]} 36.
Rxg4 {[%clk 0:00:53.5]} 36... Rf2+ {[%clk 0:00:10.4]} 37. Kb3 {[%clk 0:00:54]}
37... Rxh2 {[%clk 0:00:10.8]} 38. Rg8+ {[%clk 0:00:54.5]} 38... Kd7 {[%clk
0:00:09.3]} 39. Ra8 {[%clk 0:00:55]} 39... a5 {[%clk 0:00:07.8]} 40. a4 {[%clk
0:00:51.1]} 40... Rh3 {[%clk 0:00:07.3]} 41. Rg8 {[%clk 0:00:51.1]} 41... e5
{[%clk 0:00:06.2]} 42. Kc4 {[%clk 0:00:51.5]} 42... Ke6 {[%clk 0:00:04.3]} 43.
Kb5 {[%clk 0:00:50.5]} 43... Kd5 {[%clk 0:00:04.1]} 44. c4+ {[%clk 0:00:48.4]}
44... Kd4 {[%clk 0:00:04.1]} 45. Rg4+ {[%clk 0:00:46.9]} 45... e4 {[%clk
0:00:04]} 46. Kxb6 {[%clk 0:00:47.3]} 46... Kd3 {[%clk 0:00:02.9]} 47. Kxc5
{[%clk 0:00:45.6]} 47... e3 {[%clk 0:00:03.2]} 48. Kd5 {[%clk 0:00:41.3]} 48...
e2 {[%clk 0:00:02.2]} 49. Rd4+ {[%clk 0:00:39.3]} 49... Ke3 {[%clk 0:00:01.2]}
50. Re4+ {[%clk 0:00:35.3]} 50... Kf2 {[%clk 0:00:01.7]} 51. Rf4+ {[%clk
0:00:32.9]} 51... Kxg3 {[%clk 0:00:02.2]} 52. Re4 {[%clk 0:00:32.1]} 52... Kf2
{[%clk 0:00:02.8]} 53. c5 {[%clk 0:00:26.6]} 53... e1=Q {[%clk 0:00:03.1]} 54.
Rxe1 {[%clk 0:00:26.5]} 54... Kxe1 {[%clk 0:00:04]} 55. c6 {[%clk 0:00:26.4]}
55... Kd2 {[%clk 0:00:04.2]} 56. c7 {[%clk 0:00:25.8]} 56... Rh8 {[%clk
0:00:03.8]} 57. Kc6 {[%clk 0:00:25.1]} 57... Kc3 {[%clk 0:00:04.2]} 58. Kb5
{[%clk 0:00:23.5]} 58... Rh5+ {[%clk 0:00:03]} 59. Kb6 {[%clk 0:00:23.3]} 59...
Rh8 {[%clk 0:00:03.4]} 60. Kxa5 {[%clk 0:00:23]} 60... Kc4 {[%clk 0:00:03.8]}
61. Kb6 {[%clk 0:00:23]} 61... Kd5 {[%clk 0:00:04.1]} 62. Kb7 {[%clk 0:00:21]}
62... Kd6 {[%clk 0:00:04.4]} 63. c8=Q {[%clk 0:00:10.6]} 63... Rxc8 {[%clk
0:00:04.7]} 64. Kxc8 {[%clk 0:00:10.6]} 64... Kc6 {[%clk 0:00:05.6]} 65. a5
{[%clk 0:00:08.6]} 65... Kb5 {[%clk 0:00:05.9]} 66. a6 {[%clk 0:00:08.3]} 66...
Kxa6 {[%clk 0:00:06.1]} 1/2-1/2

[Event "*** Titled Tuesday Blitz"]
[Site "Chess.com"]
[Date "2020.12.01"]
[Round "10"]
[White "beto-betun"]
[Black "Trickov"]
[Result "1/2-1/2"]
[WhiteElo "2203"]
[BlackElo "2327"]
[TimeControl "180+1"]
[EndTime "11:56:11 PST"]
[Termination "Game drawn - timeout vs insufficient material"]

1. d4 {[%clk 0:03:00.9]} 1... d5 {[%clk 0:02:56.4]} 2. Nf3 {[%clk 0:03:01]} 2...
Nf6 {[%clk 0:02:54.8]} 3. c4 {[%clk 0:03:00.6]} 3... c6 {[%clk 0:02:51.5]} 4.
Nc3 {[%clk 0:02:59.6]} 4... dxc4 {[%clk 0:02:46.4]} 5. a4 {[%clk 0:02:58.2]}
5... Bf5 {[%clk 0:02:45.8]} 6. e3 {[%clk 0:02:57.3]} 6... e6 {[%clk 0:02:46]} 7.
Bxc4 {[%clk 0:02:57.4]} 7... Bb4 {[%clk 0:02:45.5]} 8. O-O {[%clk 0:02:57.8]}
8... O-O {[%clk 0:02:44.1]} 9. Nh4 {[%clk 0:02:54.5]} 9... Bg4 {[%clk
0:02:42.2]} 10. f3 {[%clk 0:02:50.5]} 10... Bh5 {[%clk 0:02:42.3]} 11. g4 {[%clk
0:02:48.6]} 11... Nd5 {[%clk 0:02:41.5]} 12. Ng2 {[%clk 0:02:42]} 12... Bg6
{[%clk 0:02:39.7]} 13. Ne2 {[%clk 0:02:25.1]} 13... c5 {[%clk 0:02:31.7]} 14.
Nef4 {[%clk 0:02:23.9]} 14... Nxf4 {[%clk 0:02:24.8]} 15. Nxf4 {[%clk
0:02:24.8]} 15... cxd4 {[%clk 0:02:24.4]} 16. Nxg6 {[%clk 0:02:21.7]} 16... hxg6
{[%clk 0:02:23.4]} 17. exd4 {[%clk 0:02:20.3]} 17... Nc6 {[%clk 0:02:13.7]} 18.
Be3 {[%clk 0:02:19.2]} 18... Rc8 {[%clk 0:02:11.7]} 19. Qd3 {[%clk 0:02:00.7]}
19... Qa5 {[%clk 0:01:56.4]} 20. b3 {[%clk 0:01:45.7]} 20... Rfd8 {[%clk
0:01:51.8]} 21. Qe4 {[%clk 0:01:42.1]} 21... Nxd4 {[%clk 0:01:37.5]} 22. Rad1
{[%clk 0:01:26.5]} 22... Nc6 {[%clk 0:01:28.1]} 23. g5 {[%clk 0:01:23.6]} 23...
Bc5 {[%clk 0:01:21.9]} 24. Kg2 {[%clk 0:01:10.6]} 24... Bxe3 {[%clk 0:01:21.5]}
25. Qxe3 {[%clk 0:01:11.3]} 25... Qe5 {[%clk 0:01:16.9]} 26. Qc1 {[%clk
0:00:36.3]} 26... Nd4 {[%clk 0:01:10.5]} 27. f4 {[%clk 0:00:29.7]} 27... Qe4+
{[%clk 0:01:01.2]} 28. Kg1 {[%clk 0:00:23.5]} 28... Nf5 {[%clk 0:00:49.7]} 29.
Rxd8+ {[%clk 0:00:21.9]} 29... Rxd8 {[%clk 0:00:47.1]} 30. Rd1 {[%clk 0:00:20]}
30... Qe3+ {[%clk 0:00:32.7]} 31. Qxe3 {[%clk 0:00:18.8]} 31... Rxd1+ {[%clk
0:00:32]} 32. Kf2 {[%clk 0:00:18]} 32... Nxe3 {[%clk 0:00:31.9]} 33. Kxe3 {[%clk
0:00:18.9]} 33... Rh1 {[%clk 0:00:30.6]} 34. f5 {[%clk 0:00:16.6]} 34... gxf5
{[%clk 0:00:29]} 35. g6 {[%clk 0:00:16.5]} 35... Rxh2 {[%clk 0:00:27.7]} 36.
gxf7+ {[%clk 0:00:15.8]} 36... Kxf7 {[%clk 0:00:27.8]} 37. Kf4 {[%clk
0:00:16.1]} 37... Kf6 {[%clk 0:00:27.6]} 38. Kg3 {[%clk 0:00:17]} 38... Rc2
{[%clk 0:00:26.9]} 39. Bb5 {[%clk 0:00:17.3]} 39... Rc3+ {[%clk 0:00:24.2]} 40.
Kf2 {[%clk 0:00:16.3]} 40... Rxb3 {[%clk 0:00:22]} 41. Bc4 {[%clk 0:00:16.6]}
41... Rb4 {[%clk 0:00:17.3]} 42. Bf1 {[%clk 0:00:14.7]} 42... Rxa4 {[%clk
0:00:17]} 43. Ke3 {[%clk 0:00:15.6]} 43... e5 {[%clk 0:00:16.7]} 44. Bg2 {[%clk
0:00:14.6]} 44... Ra3+ {[%clk 0:00:16.9]} 45. Kf2 {[%clk 0:00:13.3]} 45... e4
{[%clk 0:00:16.3]} 46. Bh3 {[%clk 0:00:13]} 46... f4 {[%clk 0:00:13.8]} 47. Bc8
{[%clk 0:00:12.4]} 47... Ra2+ {[%clk 0:00:13.6]} 48. Ke1 {[%clk 0:00:12.2]}
48... Rb2 {[%clk 0:00:13.5]} 49. Kd1 {[%clk 0:00:10.6]} 49... f3 {[%clk
0:00:12.8]} 50. Kc1 {[%clk 0:00:09.7]} 50... Rb6 {[%clk 0:00:11.3]} 51. Kd2
{[%clk 0:00:10.2]} 51... Ke5 {[%clk 0:00:08.7]} 52. Ke3 {[%clk 0:00:10.1]} 52...
Rb3+ {[%clk 0:00:07.2]} 53. Kf2 {[%clk 0:00:10.8]} 53... Kd4 {[%clk 0:00:05.9]}
54. Kg3 {[%clk 0:00:10.3]} 54... Rb2 {[%clk 0:00:06.1]} 55. Kf4 {[%clk
0:00:06.4]} 55... f2 {[%clk 0:00:06]} 56. Bxb7 {[%clk 0:00:07.3]} 56... f1=Q+
{[%clk 0:00:04.8]} 57. Kg5 {[%clk 0:00:08.2]} 57... Qf6+ {[%clk 0:00:01.8]} 58.
Kg4 {[%clk 0:00:07.5]} 1/2-1/2